Cogmind - Beta 17 @@@ ROGUE MODE // 2026.07.02 @ 17:54:47 Player: Cinder Result: Destroyed by D-53 Grenadier with Mini Grenade Launcher Performance ------------- Evolutions (0) 0 Regions Visited (2) 400 Robots Destroyed (25) 125 Value Destroyed (422) 422 Prototype IDs (0) 0 Alien Tech Used (0) 0 Bonus (0) 0 TOTAL SCORE: 947 Bonus ------- None Cogmind --------- Core Integrity 0/250 Matter 300/300 Energy 138/250 System Corruption 0% Temperature Cool (60) Movement Rolling (95) Ox1 Location -10/Mines Parts ------- > --- POWER (1) -------- Ion Engine > --- PROPULSION (2) --- Wheel Wheel > --- UTILITY (2) ------ Heat Sink Large Storage Unit > --- WEAPON (2) ------- Beam Cannon > --- INVENTORY (15) --- Ion Engine Wheel Wheel Heat Sink Seismic Detector Improved Targeting Computer Improved Targeting Computer Improved Targeting Computer Beam Cannon Beam Cannon Peak State ------------ > --- POWER ------------ Ion Engine > --- PROPULSION ------- Wheel Compact Wheel > --- UTILITY ---------- Heat Sink Medium Storage Unit > --- WEAPON ----------- Beam Cannon Beam Cannon > --- INVENTORY -------- Ion Engine Ion Engine Wheel Wheel Heat Sink Seismic Detector Beam Cannon Beam Cannon Beam Cannon Beam Cannon [Rating: 8] Favorites ----------- Power Ion Engine Engine Ion Engine Propulsion Wheel Wheel Wheel Utility Heat Sink Device Heat Sink Storage Medium Storage Unit Weapon Beam Cannon Energy Gun Medium Laser Energy Cannon Beam Cannon Ballistic Gun Assault Rifle Build | -11 -10 -10 ------- Run | Yrd Mat Min Slots Evolved . | . . . Power . | . . . Propulsion . | . . . Utility . | . . . Weapon . | . . . Parts Attached 20 | 6 7 7 Power 2 | 1 . 1 Engine 2 | 1 . 1 Core . | . . . Reactor . | . . . Propulsion 8 | 2 2 4 Treads . | . . . Leg . | . . . Wheel 8 | 2 2 4 Hover . | . . . Flight . | . . . Utility 4 | 1 3 . Device 1 | . 1 . Storage 3 | 1 2 . Processor . | . . . Hackware . | . . . Protection . | . . . Artifact . | . . . Weapon 6 | 2 2 2 Energy Gun 1 | 1 . . Energy Cannon 4 | . 2 2 Ballistic Gun 1 | 1 . . Ballistic Cannon . | . . . Launcher . | . . . Special Weapon . | . . . Impact Weapon . | . . . Slashing Weapon . | . . . Piercing Weapon . | . . . Special Melee Weapon . | . . . Unidentified Prototypes . | . . . Parts Lost 8 | . 1 7 Power 1 | . . 1 Propulsion 4 | . 1 3 Utility . | . . . Weapon 3 | . . 3 Highest Loss Streak 6 | . 1 6 To Critical Strikes . | . . . Average Backups 8 | 1 8 11 Power 1 | . 2 1 Propulsion 1 | . 1 2 Utility 1 | . 1 5 Weapon 3 | . 3 2 Tool/Special . | . . . Unused Backups 11 | . 6 5 Power 3 | . 2 1 Propulsion . | . . . Utility 4 | . 2 2 Weapon 4 | . 2 2 Tool/Special . | . . . Average Slot Usage (%) 95 | . 96 88 Engine 13 | . 14 9 Wheel 26 | . 26 23 Device 12 | . 12 14 Storage 14 | . 14 14 Energy Gun 1 | . 1 . Energy Cannon 25 | . 25 26 Ballistic Gun 1 | . 1 . Peak Build Rating 8 | 6 8 8 Average Rating 7 | 4 7 7 On Entrance 4 | . 6 7 Avg Prop Armor Cover (%) . | . . . Naked Turns . | . . . Heaviest Build 32 | 14 32 32 Greatest Support 32 | 32 32 20 Greatest Overweight (x) 3 | . 3 3 Average Overweight (x) . | . . 1 Largest Inventory Capacity 15 | 8 15 15 Average Capacity 10 | 7 10 15 Most Carried 15 | 4 15 15 Average Carried 8 | 1 8 11 Final Capacity 15 | 8 15 15 Final Carried 15 | 4 15 10 Class Distribution -------------------- 90% | Mutant 9% | Scavenger-Mutant Dominant Class ---------------- Mutant | -10/Materials Scavenger-Mutant | -10/Mines Resources | -11 -10 -10 ----------- Run | Yrd Mat Min Matter Collected 401 | 266 90 45 Remotely . | . . . Salvage Created 655 | 11 534 110 Parts 51 | 2 35 14 Haulers Intercepted 1 | . 1 . Recyclers Shooed . | . . . Parts Field Recycled . | . . . Retrieved Matter . | . . . Parts Self-Destructed . | . . . Prevented . | . . . Parts Restored . | . . . Kills | -11 -10 -10 ------- Run | Yrd Mat Min Combat Hostiles Destroyed 14 | . 8 6 Cannons 14 | . 8 6 Classes Destroyed 8 | 1 5 2 Worker 5 | . 5 . Builder 1 | . . 1 Tunneler 1 | 1 . . Hauler 1 | . 1 . Mechanic 1 | . 1 . Watcher 2 | . 2 . Swarmer 6 | . . 6 Grunt 8 | . 8 . Best Kill Streak 7 | 1 2 7 Combat Bots Only 6 | . 2 6 Max Kills in Single Turn 2 | 1 2 1 Gunslinging . | . . . Exploded . | . . . Melee . | . . . Uniques/NPCs Destroyed . | . . . Combat | -11 -10 -10 -------- Run | Yrd Mat Min Hostile Shots Fired 89 | . 23 66 Missed 16 | . 4 12 Hits 73 | . 19 54 Projectile 73 | . 19 54 AOE 8 | . . 8 Critical Strikes 1 | . . 1 Damage Taken 981 | . 283 698 Core 262 | . 72 190 Absorbed by Shields . | . . . Core Remaining (%) 100 | 100 . . Volleys Fired 43 | 2 24 17 Largest 2 | 2 2 2 Hottest 120 | 70 120 120 Shots Fired 81 | 4 48 29 Gun 4 | 4 . . Cannon 77 | . 48 29 Launcher . | . . . Special . | . . . Kinetic 2 | 2 . . Thermal 79 | 2 48 29 Explosive . | . . . Electromagnetic . | . . . Robot Hit Streak 11 | 2 11 4 Robot Miss Streak 3 | 1 3 3 Penetration Max . | . . . Secondary Targets . | . . . Shots Hit Robots 44 | 2 28 14 Core Hits 27 | 1 19 7 Critical Kills . | . . . Critical Parts Destroyed . | . . . Critical Strikes 1 | 1 . . Burn 1 | 1 . . Melee Attacks . | . . . Impact . | . . . Slashing . | . . . Piercing . | . . . Sneak Attacks . | . . . Combat Hostiles . | . . . Follow-up Attacks . | . . . Damage Inflicted 796 | 23 531 242 Guns 23 | 23 . . Cannons 773 | . 531 242 Explosions . | . . . Melee . | . . . Ramming . | . . . Kinetic 10 | 10 . . Thermal 786 | 13 531 242 Explosive . | . . . Electromagnetic . | . . . Impact . | . . . Slashing . | . . . Piercing . | . . . Highest Corruption . | . . . Average Corruption . | . . . Corruption Purged . | . . . Corruption Blocked . | . . . Overload Shots . | . . . Overflow Damage 4 | . . 4 Projectiles 4 | . . 4 Explosions . | . . . Melee . | . . . Knockbacks . | . . . Impact . | . . . Kinetic . | . . . Secondary . | . . . Self-Inflicted Damage . | . . . Shots . | . . . Rammed . | . . . Targets Rammed . | . . . Kicked . | . . . Crushed . | . . . Highest Temperature 160 | 18 93 160 Average Temperature 50 | 10 35 82 Received Heat Transfer 132 | . 132 . Siege Activations . | . . . Martial Activations . | . . . Shielding Activations . | . . . Robots Disrupted . | . . . Combat Hostiles . | . . . Robots Corrupted . | . . . Combat Hostiles . | . . . Parts Fried . | . . . Impact Corruptions . | . . . Robots Melted . | . . . Combat Hostiles . | . . . Parts Melted 3 | 1 1 1 Heat Transferred 1739 | 111 1110 518 Parts Sabotaged . | . . . Parts Stolen . | . . . Parts Stripped . | . . . Power Chain Reactions . | . . . Alert | -11 -10 -10 ------- Run | Yrd Mat Min Maximum Alert Level . | . . . Low Security (%) 100 | 100 100 100 Level 1 . | . . . Level 2 . | . . . Level 3 . | . . . Level 4 . | . . . Level 5 . | . . . High Security . | . . . Max Security . | . . . Peak Influence 105 | 5 50 105 Initial 8 | . . 8 Average 19 | . 16 61 Influence Increases 464 | 5 289 170 Destroy 0b10 Robot/C 280 | . 160 120 Destroy 0b10 Robot/NC 55 | 5 45 5 Destroy Leader 76 | . 46 30 Successful Hack 20 | . 20 . Destroy Structure 3 | . 3 . Lose Combat Pursuer 30 | . 15 15 Influence Decreases 394 | 5 267 122 Entered New Map 14 | . . 14 Time Decay 302 | 5 257 40 Lost Part 78 | . 10 68 Squads Dispatched 2 | . 2 . Investigation 1 | . 1 . Extermination . | . . . Reinforcement 1 | . 1 . Assault . | . . . Garrison . | . . . Intercept . | . . . Searches Triggered . | . . . Construction Impeded . | . . . Haulers Reinforced . | . . . Active Scanning Responses . | . . . Cargo Convoy Interrupts . | . . . Stealth | -11 -10 -10 --------- Run | Yrd Mat Min Distress Signals 3 | . 3 . Communications Jammed . | . . . Distress Signals . | . . . Times Spotted 40 | . 20 20 Peak Tracking Total 8 | . 3 8 Tactical Retreats 3 | . 2 1 Traps | -11 -10 -10 ------- Run | Yrd Mat Min Traps Triggered 2 | . 2 . Indirectly . | . . . Trap Hack Attempts . | . . . Triggered . | . . . Disarmed . | . . . Reprogrammed . | . . . Reused . | . . . Traps Extracted . | . . . Installed . | . . . Triggered . | . . . Machines | -11 -10 -10 ---------- Run | Yrd Mat Min Machines Disabled . | . . . Max in Single Turn . | . . . Machines Repaired . | . . . Machines Dismantled . | . . . Machines Sabotaged . | . . . Overloaded Fab Kills . | . . . Hacking | -11 -10 -10 --------- Run | Yrd Mat Min Machines Accessed 4 | . 4 . Terminals 4 | . 4 . Fabricators . | . . . Repair Stations . | . . . Recycling Units . | . . . Scanalyzers . | . . . Garrison Access . | . . . Total Hacks 10 | . 10 . Successful 3 | . 3 . Failed 6 | . 6 . Catastrophic 1 | . 1 . Database Lockouts 1 | . 1 . Manual 8 | . 8 . Terminals 10 | . 10 . Fabricators . | . . . Repair Stations . | . . . Recycling Units . | . . . Scanalyzers . | . . . Garrison Access . | . . . Terminal Hacks 3 | . 3 . Part Schematic 1 | . 1 . Robot Analysis 1 | . 1 . Branch Access Points 1 | . 1 . Fabricator Hacks . | . . . Repair Station Hacks . | . . . Recycling Unit Hacks . | . . . Scanalyzer . | . . . Garrison Access Hacks . | . . . Unauthorized Hacks . | . . . Terminals . | . . . Fabricators . | . . . Repair Stations . | . . . Recycling Units . | . . . Scanalyzers . | . . . Garrison Access . | . . . Data Cores Recovered . | . . . Used . | . . . Hacking Detections 4 | . 4 . Full Trace Events 1 | . 1 . Feedback Events . | . . . Feedback Blocked . | . . . Robot Schematics Acquired . | . . . Robots Built . | . . . Authchips . | . . . Time . | . . . Total Robot Build Rating . | . . . Part Schematics Acquired 1 | . 1 . Parts Built . | . . . Authchips . | . . . Time . | . . . Total Part Build Rating . | . . . Part Studies Acquired . | . . . Parts Repaired . | . . . Time . | . . . Parts Recycled . | . . . Recycled Matter . | . . . Retrieved Matter . | . . . Retrieved Components . | . . . Parts Scanalyzed . | . . . Part Schematics Acquired . | . . . Parts Damaged . | . . . Bothacking | -11 -10 -10 ------------ Run | Yrd Mat Min Used RIF Installer . | . . . Robots Hacked . | . . . Non-combat . | . . . Combat . | . . . Robot Hacks Applied . | . . . Relay Couplers Released . | . . . Fabnet Peak Effective % . | . . . Robots Rewired . | . . . Allies Hacked . | . . . Hacks Repelled . | . . . Allies | -11 -10 -10 -------- Run | Yrd Mat Min Total Allies . | . . . Largest Group . | . . . Highest-Rated Group . | . . . Highest-Rated Ally . | . . . Total Orders . | . . . Ally Attacks . | . . . Total Damage . | . . . Kills . | . . . Allies Corrupted . | . . . Allies Melted . | . . . Intel | -11 -10 -10 ------- Run | Yrd Mat Min Active Infowar (turns) . | . . . Robot Analysis Total 1 | . 1 . Derelict Logs Recovered . | . . . Drone Launches . | . . . Drone Recoveries . | . . . Exploration | -11 -10 -10 ------------- Run | Yrd Mat Min Turns Passed 835 | 62 691 82 Spaces Moved 652 | 44 583 25 Core 1 | 1 . . Treads . | . . . Legs . | . . . Wheels 651 | 43 583 25 Hover . | . . . Flight . | . . . Fastest Speed 50 | 50 90 95 Average Speed 96 | 98 96 99 Slowest Speed 125 | 100 125 125 Overloaded Moves . | . . . Propulsion Burnouts . | . . . Robots Hopped . | . . . Potential Cave-ins . | . . . Cave-ins Triggered . | . . . Exploration Rate (%) 34 | 4 84 14 Regions Visited 2 Branch Regions 1 Pre-discovered Areas . | . . . Known Exits Taken 1 | . 1 . Unknown Exits Taken 1 | 1 . . Scrap Searched . | . . . Spaces Dug . | . . . Terrain Destroyed . | . . . Melee . | . . . Projectile . | . . . AOE . | . . . Terrain Rammed . | . . . Walls Destroyed . | . . . Machines Disabled . | . . . Actions | -11 -10 -10 --------- Run | Yrd Mat Min Total 775 | 55 667 53 Wait 22 | . 20 2 Move 650 | 43 582 25 Hop . | . . . Pick Up 23 | 4 17 2 Fast Attach 11 | 6 5 . Attach 7 | . . 7 Detach 2 | . 2 . Swap 4 | . 4 . Drop 13 | . 13 . Fire 43 | 2 24 17 Melee . | . . . Ram . | . . . Kick . | . . . Crush . | . . . Escape Stasis . | . . . Rewire . | . . . Trap . | . . . Miscellaneous . | . . . Route ------- -11/Scrapyard -10/Materials (discovered 4 exits: [*Mat x3] / *Min) -10/Mines History --------- Turn | Location | Event 28 | -11/Scrapyard | Discovered new exit (range 16) 63 | -11/Scrapyard | Entered Materials 76 | -10/Materials | Identified exit to Mines 227 | -10/Materials | Discovered new exit (range 16) 308 | -10/Materials | Build established: Mutant 451 | -10/Materials | Central database locked down 458 | -10/Materials | Discovered new exit (range 16) 563 | -10/Materials | Derelicts attacked the area 582 | -10/Materials | Discovered new exit (range 5) 754 | -10/Materials | Entered Mines 762 | -10/Mines | Assembled infested the area 771 | -10/Mines | Core integrity fell below 50% 833 | -10/Mines | Core integrity fell below 20% 835 | -10/Mines | Lost 6 parts (1p3n2w) 836 | -10/Mines | Destroyed by D-53 Grenadier with Mini Grenade Launcher Last Messages --------------- 00808_ Acquired 35 matter. 00809_ as-70373 destroyed. 00809_ as-17408 destroyed. 00809_ U-05 Engineer builds a Wall. 00811_ as-18258 destroyed. 00811_ K-01 Serf collects debris. 00812_ U-05 Engineer destroyed. 00813_ K-01 Serf destroyed. 00813_ as-52022 destroyed. 00814_ Acquired Wheel. 00815_ The unstable cave ceiling collapses. 00815_ Acquired 10 matter. 00816_ The unstable cave ceiling collapses. 00817_ Acquired Wheel. 00819_ R-06 Scavenger collects Lgt. Ion Engine. 00832_ K-01 Serf collects debris. 00833_ Destroyed Shock Absorption System. 00835_ K-01 Serf collects debris. 00836_ The unstable cave ceiling collapses. 00836_ Beam Cannon destroyed. Map ----- +----------------------------------------------------+ | ?????????????????????? [%= ??????????????????? | | ???????????????????# # = ?#????????????????? | | ???????????????????? # #???????????????? | | ??????????????????? #???????????????? | | ???????????????????? ???????????????? | | ????????????????????? #???????????????? | | ??????????????????????# ????????????????? | | ??????????????????????# #???????????????? | | ????????????????????#### #???????????????? | | ????????????????????# [ ????????????????? | | ????????????????????# ????????????????? | | ????????????????????# % #????????????????? | | ????????????????????# [ #????????????????? | | ????????????????????# # ##%#????????????????? | | ????????????????????# #### #????????????????? | | ????????????????????########??#!#????????????????? | | ?????????????????????????????## ##???????????????? | | ????????????????????????###### ##??????????????? | | ???????????????????????## ## # #????????????? | | ??????????????????????## dd #????????? | | ??????????????????????# ### #????????? | | ?????????????????????## ### #####????????? | | ????????????????????## ## ?????????? | | ????????????????????# # ??????? | | ?????????????????????# ########???????? | | ?????????????????????# @ ##??????????????? | | ?????????????? ## #???????????????? | | ?????????????###### # #? #???????????????? | | ??????????????????# # #? #???????????????? | | ?????????????????# # # ## #? #???????????????? | | ?????????????????#? ? kt ???????????????? | | ??????????????????# #####?? k ???????????????? | | ??????????????????# ? ???????#####???????????????? | | ?????????????????? ? ????????????????????????????? | | ????????????????? ? ????????????????????????????? | | ????????????????#?? ?????????????????????????????? | | ?????????????????? ?????????????????????????????? | | ?????????????????? ??????????????????????????????? | | ?????????????????????????????????????????????????? | | ?????????????????????????????????????????????????? | | ?????????????????????????????????????????????????? | | ?????????????????????????????????????????????????? | | ?????????????????????????????????????????????????? | | ?????????????????????????????????????????????????? | | ?????????????????????????????????????????????????? | | ?????????????????????????????????????????????????? | | ?????????????????????????????????????????????????? | | ?????????????????????????????????????????????????? | | ?????????????????????????????????????????????????? | | ?????????????????????????????????????????????????? | +----------------------------------------------------+ Best States ------------- Heat Dissipation 35 Energy Generation 10 Energy Capacity 250 Matter Stores 300 Matter Capacity 300 Sight Range 16 Terrain Scan Density 10 Evasion (%) 42 Item Schematics ----------------- Huge Storage Unit | -10/Materials | Hacked Robot Schematics ------------------ None Fabricated ------------ Nothing Repaired ---------- Nothing Studied --------- None Alien Tech Used ----------------- None Achievements -------------- None Challenges ------------ None Game ------ Seed MobileAntisysTurbovents Manual? 0 Play Time 00:08:59 Cumulative 171.1 hours Start 2026.07.02 @ 17:47:12 End 2026.07.02 @ 17:54:47 Sessions 1 Manual Loads 0 Difficulty Rogue Special Mode None Game No. 235 Rogue 235 Adventurer 0 Explorer 0 Win Type - Total 2 Types 2/0/0/0/0/0/0/0/0/0 Lore% 74 Gallery% 55 Achievement% 42 Wizard Run 0 Options --------- Layout 0 ASCII 0 Keyboard 0 Movement Numpad Keybinds 0 Fullscreen 1 Font 18/Terminus Map View 76x50 Zoom Use 0% Tactical HUD 1 Map Filters NONE Filters NONE Steam 1 RUN: 7d85a788-b39b-4ae4-b836-3ce32d88eeb2